fUST/lending_fUST_20250729
["ID","MTS","AMOUNT","RATE_DAILY","PERIOD"]
[375895051,1753776657239,-460.0,0.00019726,2]
[375895053,1753776657249,-460.0,0.00019726,2]
[375895055,1753776657259,-460.0,0.00019726,2]
[375895057,1753776657268,-460.0,0.00019726,2]
[375895058,1753776657278,-460.0,0.00019726,2]
[375895060,1753776657287,-460.0,0.00019726,2]
[375895062,1753776657296,-460.0,0.00019726,2]
[375895064,1753776657306,-460.0,0.00019726,2]
[375895066,1753776657316,-654.57,0.00019726,2]
[375895069,1753776657326,-1247.81,0.00019726,2]
[375895070,1753776657335,-2060.04,0.00019726,2]
[375895072,1753776657344,-460.0,0.00019726,2]
[375895074,1753776657354,-541.04,0.00019726,2]
[375895076,1753776657363,-460.0,0.00019726,2]
[375895078,1753776657372,-460.0,0.00019726,2]
[375895080,1753776657382,-460.0,0.00019726,2]
[375895082,1753776657392,-2387.66,0.00019726,2]
[375895084,1753776657402,-460.0,0.00019726,2]
[375895086,1753776657415,-460.0,0.00019726,2]
[375895088,1753776657425,-460.0,0.00019726,2]
[375895090,1753776657434,-460.0,0.00019726,2]
[375895092,1753776657444,-753.18,0.00019726,2]
[375895094,1753776657453,-460.0,0.00019726,2]
[375895096,1753776657463,-472.96,0.00019726,2]
[375895098,1753776657472,-460.0,0.00019726,2]
[375895100,1753776657486,-802.4,0.00019726,2]
[375895102,1753776657496,-706.12,0.00019726,2]
[375895104,1753776657505,-1855.46,0.00019726,2]
[375895106,1753776657515,-460.0,0.00019726,2]
[375895108,1753776657525,-460.0,0.00019726,2]
[375895110,1753776657534,-460.0,0.00019726,2]
[375895112,1753776657543,-460.0,0.00019726,2]
[375895114,1753776657553,-459.78723784,0.00019726,2]
[375895116,1753776657563,-341.76280935,0.00019726,2]
[375895118,1753776657572,-460.0,0.00019726,2]
[375895120,1753776657581,-460.0,0.00019726,2]
[375895122,1753776657591,-462.60827728,0.00019726,2]
[375895124,1753776657601,-460.0,0.00019726,2]
[375895126,1753776657610,-1763.54,0.00019726,2]
[375895128,1753776657620,-460.0,0.00019726,2]
[375895130,1753776657629,-460.0,0.00019726,2]
[375895132,1753776657639,-151.0,0.00019726,2]
[375895134,1753776657648,-1594.38,0.00019726,2]
[375895136,1753776657657,-460.0,0.00019726,2]
[375895138,1753776657666,-460.0,0.00019726,2]
[375895140,1753776657675,-460.0,0.00019726,2]
[375895142,1753776657685,-460.0,0.00019726,2]
[375895144,1753776657694,-460.0,0.00019726,2]
[375895146,1753776657704,-461.14643806,0.00019726,2]
[375895148,1753776657713,-724.34,0.00019726,2]
[375895149,1753776657722,-460.0,0.00019726,2]
[375895151,1753776657732,-788.79,0.00019726,2]
[375895153,1753776657741,-571.72426853,0.00019726,2]
[375895155,1753776657750,-1760.1,0.00019726,2]
[375895164,1753776657825,-460.0,0.00019726,2]
[375895166,1753776657841,-460.0,0.00019726,2]
[375895168,1753776657851,-460.0,0.00019726,2]
[375895170,1753776657860,-500.0,0.00019767,2]
[375895172,1753776657870,-151.0,0.00019773,2]
[375895174,1753776657879,-151.0,0.00019773,2]
[375895176,1753776657889,-151.0,0.00019773,2]
[375895178,1753776657898,-151.0,0.00019773,2]
[375895179,1753776657907,-1378.2238852,0.000199,2]
[375895181,1753776657916,-3598.1041658,0.000199,2]
[375895183,1753776657925,-152.260752,0.00019968,2]
[375895185,1753776657935,-151.0,0.00019968,2]
[375895187,1753776657945,-151.0,0.00019968,2]
[375895189,1753776657955,-500.0,0.00019973,2]
[375895191,1753776657964,-507.01081272,0.00019973,2]
[375895193,1753776657974,-514.56090527,0.00019973,2]
[375895195,1753776657983,-500.0,0.00019973,2]
[375895197,1753776657993,-151.0,0.0002,2]
[375895199,1753776658002,-243.18241454,0.0002,2]
[375895201,1753776658012,-500.0,0.0002,2]
[375895203,1753776658021,-151.0,0.0002,2]
[375895205,1753776658032,-151.0,0.0002,2]
[375895207,1753776658043,-460.0,0.0002,2]
[375895209,1753776658052,-151.0,0.0002,2]
[375895211,1753776658062,-233.58690594,0.0002,2]
[375895213,1753776658072,-460.0,0.0002,2]
[375895215,1753776658081,-460.0,0.0002,2]
[375895217,1753776658091,-460.0,0.0002,2]
[375895218,1753776658100,-151.0,0.0002,2]
[375895220,1753776658109,-561.16,0.0002,2]
[375895222,1753776658119,-460.0,0.0002,2]
[375895224,1753776658128,-460.0,0.0002,2]
[375895226,1753776658137,-460.0,0.0002,2]
[375895228,1753776658147,-460.0,0.0002,2]
[375895230,1753776658156,-460.0,0.0002,2]
[375895232,1753776658165,-460.0,0.0002,2]
[375895234,1753776658174,-460.0,0.0002,2]
[375895236,1753776658183,-151.0,0.0002,2]
[375895238,1753776658193,-460.0,0.0002,2]
[375895240,1753776658202,-525.84608807,0.0002,2]
[375895242,1753776658213,-460.0,0.0002,2]
[375895243,1753776658222,-151.0,0.0002,2]
[375895245,1753776658232,-460.0,0.0002,2]
[375895247,1753776658241,-461.56912124,0.0002,2]
[375895249,1753776658250,-674.1,0.0002,2]
[375895251,1753776658260,-460.0,0.0002,2]
[375895253,1753776658269,-558.18676477,0.0002,2]
[375895255,1753776658280,-151.0,0.0002,2]
[375895257,1753776658289,-460.0,0.0002,2]
[375895259,1753776658299,-460.0,0.0002,2]
[375895261,1753776658308,-466.8775047,0.0002,2]
[375895263,1753776658320,-460.0,0.0002,2]
[375895265,1753776658330,-561.07683473,0.0002,2]
[375895267,1753776658339,-580.97,0.0002,2]
[375895269,1753776658349,-342.12151375,0.0002,2]
[375895271,1753776658358,-460.0,0.0002,2]
[375895273,1753776658367,-460.0,0.0002,2]
[375895275,1753776658376,-460.0,0.0002,2]
[375895276,1753776658385,-460.49,0.0002,2]
[375895278,1753776658395,-460.0,0.0002,2]
[375895280,1753776658408,-460.0,0.0002,2]
[375895282,1753776658418,-460.0,0.0002,2]
[375895284,1753776658427,-460.0,0.0002,2]
[375895286,1753776658436,-460.0,0.0002,2]
[375895288,1753776658446,-460.0,0.0002,2]
[375895290,1753776658455,-460.0,0.0002,2]
[375895292,1753776658464,-460.0,0.0002,2]
[375895294,1753776658473,-294.70802566,0.0002,2]
[375895296,1753776658483,-460.0,0.0002,2]
[375895297,1753776658493,-467.10188042,0.0002,2]
[375895299,1753776658502,-460.0,0.0002,2]
[375895301,1753776658511,-460.0,0.0002,2]
[375895303,1753776658520,-460.0,0.0002,2]
[375895305,1753776658530,-460.0,0.0002,2]
[375895307,1753776658540,-775.13,0.0002,2]
[375895309,1753776658549,-460.0,0.0002,2]
[375895311,1753776658559,-243.04736587,0.0002,2]
[375895313,1753776658569,-460.0,0.0002,2]
[375895315,1753776658577,-460.0,0.0002,2]
[375895317,1753776658587,-460.0,0.0002,2]
[375895319,1753776658596,-460.0,0.0002,2]
[375895321,1753776658606,-460.0,0.0002,2]
[375895323,1753776658620,-460.0,0.0002,2]
[375895324,1753776658629,-460.0,0.0002,2]
[375895326,1753776658639,-460.0,0.0002,2]
[375895328,1753776658649,-544.885688,0.0002,2]
[375895330,1753776658658,-460.0,0.0002,2]
[375895332,1753776658667,-544.885688,0.0002,2]
[375895334,1753776658677,-460.0,0.0002,2]
[375895336,1753776658686,-460.0,0.0002,2]
[375895338,1753776658696,-460.0,0.0002,2]
[375895340,1753776658705,-151.0,0.0002,2]
[375895342,1753776658715,-460.0,0.0002,2]
[375895344,1753776658724,-151.0,0.0002,2]
[375895346,1753776658734,-460.0,0.0002,2]
[375895348,1753776658743,-460.0,0.0002,2]
[375895350,1753776658752,-460.0,0.0002,2]
[375895352,1753776658762,-533.21184563,0.0002,2]
[375895354,1753776658771,-460.0,0.0002,2]
[375895356,1753776658780,-460.0,0.0002,2]
[375895357,1753776658789,-460.0,0.0002,2]
[375895359,1753776658798,-460.0,0.0002,2]
[375895361,1753776658809,-460.0,0.0002,2]
[375895363,1753776658818,-460.0,0.0002,2]
[375895365,1753776658827,-460.0,0.0002,2]
[375895367,1753776658837,-460.0,0.0002,2]
[375895369,1753776658846,-460.0,0.0002,2]
[375895371,1753776658855,-460.0,0.0002,2]
[375895373,1753776658864,-460.0,0.0002,2]
[375895375,1753776658874,-460.0,0.0002,2]
[375895377,1753776658883,-460.0,0.0002,2]
[375895379,1753776658893,-460.0,0.0002,2]
[375895381,1753776658902,-460.0,0.0002,2]
[375895383,1753776658911,-460.0,0.0002,2]
[375895384,1753776658920,-460.0,0.0002,2]
[375895386,1753776658930,-460.0,0.0002,2]
[375895388,1753776658939,-460.0,0.0002,2]
[375895390,1753776658949,-567.47,0.0002,2]
[375895392,1753776658958,-917.94,0.0002,2]
[375895394,1753776658967,-460.0,0.0002,2]
[375895396,1753776658977,-460.0,0.0002,2]
[375895398,1753776658986,-583.5,0.0002,2]
[375895400,1753776658996,-151.0,0.0002,2]
[375895402,1753776659005,-460.0,0.0002,2]
[375895404,1753776659015,-464.31744254,0.0002,2]
[375895406,1753776659024,-240.66819969,0.0002,2]
[375895408,1753776659033,-151.0,0.0002,2]
[375895410,1753776659043,-466.15586867,0.0002,2]
[375895412,1753776659052,-460.0,0.0002,2]
[375895414,1753776659061,-462.72,0.0002,2]
[375895423,1753776659140,-505.1,0.0002,2]
[375895425,1753776659150,-460.0,0.0002,2]
[375895426,1753776659159,-460.0,0.0002,2]
[375895428,1753776659169,-741.76,0.0002,2]
[375895430,1753776659178,-311.12388248,0.0002,2]
[375895432,1753776659188,-151.0,0.0002,2]
[375895434,1753776659198,-460.0,0.0002,2]
[375895436,1753776659207,-460.0,0.0002,2]
[375895438,1753776659216,-460.0,0.0002,2]
[375895440,1753776659226,-460.0,0.0002,2]
[375895442,1753776659235,-582.91,0.0002,2]
[375895444,1753776659244,-468.64712362,0.0002,2]
[375895446,1753776659254,-151.0,0.0002,2]
[375895448,1753776659263,-460.0,0.0002,2]
[375895450,1753776659271,-151.0,0.0002,2]
[375895452,1753776659280,-460.0,0.0002,2]
[375895453,1753776659290,-460.0,0.0002,2]
[375895455,1753776659299,-580.42,0.0002,2]
[375895457,1753776659309,-542.54,0.0002,2]
[375895459,1753776659318,-460.0,0.0002,2]
[375895461,1753776659327,-460.0,0.0002,2]
[375895463,1753776659336,-460.0,0.0002,2]
[375895465,1753776659345,-460.0,0.0002,2]
[375895467,1753776659355,-460.0,0.0002,2]
[375895469,1753776659365,-460.0,0.0002,2]
[375895471,1753776659374,-460.0,0.0002,2]
[375895473,1753776659383,-460.0,0.0002,2]
[375895475,1753776659396,-300.38131022,0.0002,2]
[375895477,1753776659409,-460.0,0.0002,2]
[375895479,1753776659418,-599.42932843,0.0002,2]
[375895481,1753776659428,-460.0,0.0002,2]
[375895483,1753776659437,-460.0,0.0002,2]
[375895485,1753776659447,-460.0,0.0002,2]
[375895487,1753776659457,-460.0,0.0002,2]
[375895488,1753776659467,-460.0,0.0002,2]
[375895490,1753776659476,-542.4,0.0002,2]
[375895492,1753776659488,-460.0,0.0002,2]
[375895494,1753776659498,-460.0,0.0002,2]
[375895496,1753776659508,-460.0,0.0002,2]
[375895498,1753776659517,-460.0,0.0002,2]
[375895500,1753776659527,-460.0,0.0002,2]
[375895502,1753776659537,-151.0,0.0002,2]
[375895504,1753776659547,-460.0,0.0002,2]
[375895506,1753776659556,-460.0,0.0002,2]
[375895508,1753776659566,-5280.17,0.0002,2]
[375895510,1753776659576,-460.0,0.0002,2]
[375895512,1753776659586,-462.32364681,0.0002,2]
[375895514,1753776659594,-460.0,0.0002,2]
[375895516,1753776659604,-460.0,0.0002,2]
[375895518,1753776659613,-1039.05,0.0002,2]
[375895520,1753776659622,-460.0,0.0002,2]
[375895521,1753776659631,-460.0,0.0002,2]
[375895523,1753776659642,-460.0,0.0002,2]
[375895525,1753776659651,-460.0,0.0002,2]
[375895527,1753776659660,-1586.57,0.0002,2]
[375895529,1753776659670,-460.0,0.0002,2]
[375895531,1753776659679,-460.0,0.0002,2]
[375895533,1753776659688,-460.0,0.0002,2]
[375895535,1753776659697,-460.0,0.0002,2]
[375895537,1753776659706,-562.45259436,0.0002,2]
[375895539,1753776659716,-155.79617446,0.0002,2]
[375895541,1753776659725,-151.0,0.0002,2]
[375895543,1753776659734,-151.0,0.0002,2]
[375895545,1753776659744,-474.55,0.0002,2]
[375895547,1753776659753,-460.0,0.0002,2]
[375895548,1753776659763,-460.0,0.0002,2]
[375895550,1753776659772,-462.55046782,0.0002,2]
[375895552,1753776659781,-460.0,0.0002,2]
[375895554,1753776659791,-460.0,0.0002,2]
[375895556,1753776659800,-151.0,0.0002,2]
[375895558,1753776659810,-460.0,0.0002,2]
[375895560,1753776659821,-460.0,0.0002,2]
[375895562,1753776659831,-734.551308,0.0002,2]
[375895564,1753776659840,-460.0,0.0002,2]
[375895566,1753776659849,-734.551308,0.0002,2]
[375895568,1753776659858,-590.39,0.0002,2]
[375895570,1753776659868,-460.0,0.0002,2]
[375895571,1753776659876,-460.0,0.0002,2]
[375895572,1753776659885,-460.0,0.0002,2]
[375895573,1753776659895,-460.0,0.0002,2]
[375895574,1753776659904,-460.0,0.0002,2]
[375895575,1753776659913,-460.0,0.0002,2]
[375895576,1753776659922,-460.0,0.0002,2]
[375895577,1753776659932,-657.55,0.0002,2]
[375895578,1753776659941,-151.0,0.0002,2]
[375895579,1753776659950,-460.0,0.0002,2]
[375895580,1753776659960,-460.0,0.0002,2]
[375895581,1753776659969,-322.76859039,0.0002,2]
[375895582,1753776659978,-182.01226008,0.0002,2]
[375895583,1753776659989,-743.36,0.0002,2]
[375895584,1753776659998,-460.0,0.0002,2]
[375895585,1753776660007,-460.0,0.0002,2]
[375895586,1753776660017,-460.0,0.0002,2]
[375895587,1753776660026,-2071.52,0.0002,2]
[375895588,1753776660036,-460.0,0.0002,2]
[375895589,1753776660045,-460.0,0.0002,2]
[375895590,1753776660055,-747.04,0.0002,2]
[375895591,1753776660064,-460.0,0.0002,2]
[375895592,1753776660074,-460.0,0.0002,2]
[375895593,1753776660083,-460.0,0.0002,2]
[375895595,1753776660094,-460.0,0.0002,2]
[375895597,1753776660104,-692.91,0.0002,2]
[375895599,1753776660116,-460.0,0.0002,2]
[375895601,1753776660125,-460.0,0.0002,2]
[375895603,1753776660135,-460.0,0.0002,2]
[375895605,1753776660146,-237.04778176,0.0002,2]
[375895607,1753776660155,-460.0,0.0002,2]
[375895609,1753776660164,-464.26133397,0.0002,2]
[375895611,1753776660173,-3221.33,0.0002,2]
[375895613,1753776660182,-460.0,0.0002,2]
[375895615,1753776660191,-460.0,0.0002,2]
[375895617,1753776660201,-460.0,0.0002,2]
[375895619,1753776660210,-460.0,0.0002,2]
[375895620,1753776660219,-460.0,0.0002,2]
[375895622,1753776660229,-460.0,0.0002,2]
[375895624,1753776660238,-460.0,0.0002,2]
[375895626,1753776660248,-460.0,0.0002,2]
[375895628,1753776660257,-460.0,0.0002,2]
[375895630,1753776660267,-460.0,0.0002,2]
[375895639,1753776660277,-460.0,0.0002,2]
[375895641,1753776660352,-460.0,0.0002,2]
[375895643,1753776660361,-460.0,0.0002,2]
[375895645,1753776660371,-460.0,0.0002,2]
[375895647,1753776660380,-482.19,0.0002,2]
[375895649,1753776660390,-460.0,0.0002,2]
[375895651,1753776660399,-460.0,0.0002,2]
[375895652,1753776660411,-1829.41,0.0002,2]
[375895654,1753776660420,-622.22,0.0002,2]
[375895656,1753776660429,-460.0,0.0002,2]
[375895658,1753776660438,-509.01,0.0002,2]
[375895660,1753776660449,-2176.17,0.0002,2]
[375895662,1753776660459,-460.0,0.0002,2]
[375895664,1753776660469,-609.97,0.0002,2]
[375895666,1753776660479,-6312.74,0.0002,2]
[375895668,1753776660489,-460.0,0.0002,2]
[375895670,1753776660498,-460.0,0.0002,2]
[375895672,1753776660508,-460.0,0.0002,2]
[375895674,1753776660517,-622.39,0.0002,2]
[375895676,1753776660527,-460.0,0.0002,2]
[375895678,1753776660536,-460.0,0.0002,2]
[375895680,1753776660546,-882.39,0.0002,2]
[375895682,1753776660556,-460.0,0.0002,2]
[375895684,1753776660565,-460.0,0.0002,2]
[375895686,1753776660575,-1111.58,0.0002,2]
[375895688,1753776660583,-460.0,0.0002,2]
[375895690,1753776660593,-468.98956549,0.0002,2]
[375895692,1753776660602,-2745.83,0.0002,2]
[375895694,1753776660611,-510.4,0.0002,2]
[375895696,1753776660622,-460.0,0.0002,2]
[375895698,1753776660631,-155.05178508,0.0002,2]
[375895700,1753776660640,-460.0,0.0002,2]
[375895702,1753776660652,-460.0,0.0002,2]
[375895704,1753776660662,-475.81433384,0.0002,2]
[375895706,1753776660671,-460.0,0.0002,2]
[375895708,1753776660680,-460.0,0.0002,2]
[375895710,1753776660689,-460.0,0.0002,2]
[375895712,1753776660698,-654.57,0.0002,2]
[375895714,1753776660707,-1247.81,0.0002,2]
[375895716,1753776660717,-2060.04,0.0002,2]
[375895717,1753776660726,-460.0,0.0002,2]
[375895719,1753776660735,-541.04,0.0002,2]
[375895721,1753776660744,-460.0,0.0002,2]
[375895723,1753776660754,-460.0,0.0002,2]
[375895725,1753776660763,-460.0,0.0002,2]
[375895727,1753776660773,-2387.66,0.0002,2]
[375895729,1753776660782,-467.35681721,0.0002,2]
[375895731,1753776660791,-460.0,0.0002,2]
[375895733,1753776660801,-460.0,0.0002,2]
[375895735,1753776660810,-460.0,0.0002,2]
[375895737,1753776660819,-753.18,0.0002,2]
[375895739,1753776660829,-460.0,0.0002,2]
[375895741,1753776660843,-472.96,0.0002,2]
[375895743,1753776660862,-517.78742855,0.0002,2]
[375895745,1753776660872,-802.4,0.0002,2]
[375895747,1753776660886,-706.12,0.0002,2]
[375895750,1753776660929,-1855.46,0.0002,2]
[375895752,1753776660945,-467.46191031,0.0002,2]
[375895755,1753776660965,-460.0,0.0002,2]
[375895758,1753776660983,-460.0,0.0002,2]
[375895761,1753776661001,-460.0,0.0002,2]
[375895764,1753776661019,-460.0,0.0002,2]
[375895766,1753776661036,-460.0,0.0002,2]
[375895769,1753776661052,-460.0,0.0002,2]
[375895772,1753776661068,-1763.54,0.0002,2]
[375895774,1753776661085,-460.0,0.0002,2]
[375895778,1753776661106,-460.0,0.0002,2]
[375895780,1753776661119,-151.0,0.0002,2]
[375895783,1753776661133,-1594.38,0.0002,2]
[375895785,1753776661151,-460.0,0.0002,2]
[375895788,1753776661165,-460.0,0.0002,2]
[375895790,1753776661179,-460.0,0.0002,2]
[375895793,1753776661193,-460.0,0.0002,2]
[375895795,1753776661209,-724.34,0.0002,2]
[375895798,1753776661222,-788.79,0.0002,2]
[375895800,1753776661237,-1760.1,0.0002,2]
[375895803,1753776661251,-460.0,0.0002,2]
[375895805,1753776661265,-460.0,0.0002,2]
[375895808,1753776661279,-504.04765732,0.00020021,2]
[375895810,1753776661294,-1000.0,0.00020021,2]
[375895813,1753776661309,-1000.0,0.00020021,2]
[375895815,1753776661323,-504.02469365,0.00020021,2]
[375895818,1753776661337,-501.96038851,0.00020021,2]
[375895820,1753776661351,-1000.0,0.00020021,2]
[375895822,1753776661365,-1000.0,0.00020021,2]
[375895825,1753776661379,-1000.0,0.00020021,2]
[375895827,1753776661394,-504.61106702,0.00020021,2]
[375895830,1753776661410,-515.48631446,0.00020021,2]
[375895832,1753776661425,-1000.0,0.00020021,2]
[375895835,1753776661440,-1000.0,0.00020021,2]
[375895837,1753776661456,-1006.97805857,0.00020021,2]
[375895840,1753776661471,-500.0,0.00020021,2]
[375895843,1753776661487,-1000.0,0.00020021,2]
[375895845,1753776661501,-160.0,0.00020032,3]
[375895848,1753776661516,-460.5085953,0.00020032,3]
[375895850,1753776661531,-214.91980558,0.00020032,3]
[375895853,1753776661546,-12637.12721421,0.00020032,3]
[375895855,1753776661561,-312.16666667,0.00020032,3]
[375895858,1753776661575,-8969.94,0.00020032,3]
[375895860,1753776661590,-4484.98,0.00020032,3]
[375895863,1753776661603,-1121.24,0.00020032,3]
[375895865,1753776661617,-560.62,0.00020032,3]
[375895868,1753776661631,-2242.48,0.00020033,3]
[375895870,1753776661645,-500.0,0.00020041,2]
[375895872,1753776661659,-151.0,0.00020108,2]
[375895875,1753776661673,-154.086202,0.00020108,2]
[375895877,1753776661688,-151.0,0.00020108,2]
[375895880,1753776661703,-151.0,0.00020108,2]
[375895882,1753776661716,-151.0,0.00020108,2]
[375895885,1753776661731,-4468.14965171,0.00020167,2]
[375895898,1753776661827,-241.746345,0.00020187,2]
[375895900,1753776661854,-500.0,0.00020227,2]
[375895902,1753776661864,-13663.71276258,0.00020236,2]
[375895904,1753776661874,-260.0,0.00020267,2]
[375895906,1753776661883,-502.20877685,0.00020273,2]
[375895908,1753776661892,-502.77103906,0.00020273,2]
[375895910,1753776661902,-500.0,0.00020273,2]
[375895912,1753776661911,-500.0,0.00020273,2]
[375895914,1753776661920,-500.0,0.00020273,2]
[375895916,1753776661930,-500.31792839,0.00020273,2]
[375895918,1753776661940,-151.0,0.00020273,2]
[375895920,1753776661950,-460.0,0.00020273,2]
[375895922,1753776661968,-151.0,0.00020273,2]
[375895924,1753776661987,-460.0,0.00020273,2]
[375895926,1753776662001,-151.0,0.00020273,2]
[375895928,1753776662010,-152.66584727,0.00020273,2]
[375895930,1753776662019,-411.58198728,0.00020273,2]
[375895932,1753776662028,-152.376034,0.00020273,2]
[375895933,1753776662038,-151.0,0.00020273,2]
[375895935,1753776662047,-561.16,0.00020273,2]
[375895937,1753776662058,-460.0,0.00020273,2]
[375895939,1753776662067,-460.0,0.00020273,2]
[375895941,1753776662077,-460.0,0.00020273,2]
[375895943,1753776662087,-460.0,0.00020273,2]
[375895945,1753776662098,-460.0,0.00020273,2]
[375895947,1753776662107,-460.0,0.00020273,2]
[375895949,1753776662116,-273.49283626,0.00020273,2]
[375895951,1753776662125,-152.887501,0.00020273,2]
[375895953,1753776662135,-460.0,0.00020273,2]
[375895955,1753776662145,-674.1,0.00020273,2]
[375895957,1753776662154,-460.0,0.00020273,2]
[375895959,1753776662163,-151.0,0.00020273,2]
[375895961,1753776662173,-601.43046983,0.00020273,2]
[375895963,1753776662182,-460.0,0.00020273,2]
[375895965,1753776662192,-580.97,0.00020273,2]
[375895967,1753776662201,-460.0,0.00020273,2]
[375895969,1753776662211,-460.0,0.00020273,2]
[375895971,1753776662221,-460.0,0.00020273,2]
[375895973,1753776662230,-460.49,0.00020273,2]
[375895975,1753776662239,-460.0,0.00020273,2]
[375895977,1753776662248,-203.90720996,0.00020273,2]
[375895979,1753776662258,-460.0,0.00020273,2]
[375895981,1753776662267,-464.10937476,0.00020273,2]
[375895983,1753776662277,-460.0,0.00020273,2]
[375895985,1753776662286,-460.0,0.00020273,2]
[375895987,1753776662295,-460.0,0.00020273,2]
[375895989,1753776662305,-184.91321282,0.00020273,2]
[375895991,1753776662314,-193.97679383,0.00020273,2]
[375896008,1753776662530,-266.02320617,0.00020273,2]
[375896010,1753776662541,-460.0,0.00020273,2]
[375896012,1753776662551,-460.0,0.00020273,2]
[375896014,1753776662560,-458.09311689,0.00020273,2]
[375896016,1753776662570,-775.13,0.00020273,2]
[375896018,1753776662579,-593.2109823,0.00020273,2]
[375896020,1753776662588,-460.0,0.00020273,2]
[375896022,1753776662598,-460.0,0.00020273,2]
[375896024,1753776662607,-460.0,0.00020273,2]
[375896026,1753776662616,-460.0,0.00020273,2]
[375896028,1753776662625,-460.0,0.00020273,2]
[375896030,1753776662635,-460.0,0.00020273,2]
[375896032,1753776662644,-460.0,0.00020273,2]
[375896034,1753776662654,-460.0,0.00020273,2]
[375896036,1753776662663,-460.0,0.00020273,2]
[375896038,1753776662673,-298.2069059,0.00020273,2]
[375896040,1753776662682,-460.0,0.00020273,2]
[375896042,1753776662692,-460.0,0.00020273,2]
[375896044,1753776662701,-460.0,0.00020273,2]
[375896046,1753776662711,-460.0,0.00020273,2]
[375896048,1753776662720,-505.09,0.00020273,2]
[375896050,1753776662729,-460.0,0.00020273,2]
[375896052,1753776662739,-460.0,0.00020273,2]
[375896054,1753776662753,-460.0,0.00020273,2]
[375896056,1753776662762,-583.23312618,0.00020273,2]
[375896058,1753776662772,-460.0,0.00020273,2]
[375896060,1753776662781,-464.63859633,0.00020273,2]
[375896062,1753776662790,-460.0,0.00020273,2]
[375896064,1753776662799,-460.0,0.00020273,2]
[375896066,1753776662809,-460.0,0.00020273,2]
[375896068,1753776662818,-460.0,0.00020273,2]
[375896070,1753776662827,-460.0,0.00020273,2]
[375896072,1753776662838,-460.0,0.00020273,2]
[375896074,1753776662847,-460.0,0.00020273,2]
[375896076,1753776662857,-460.0,0.00020273,2]
[375896078,1753776662866,-460.0,0.00020273,2]
[375896080,1753776662875,-460.0,0.00020273,2]
[375896082,1753776662884,-169.60272768,0.00020273,2]
[375896084,1753776662894,-567.47,0.00020273,2]